bitfinex/quotes_SOLUSD_20251224
["timestamp","ask_amount","ask_price","bid_price","bid_amount"]
[1766609102630,0.67,122.93,122.91,10.43767296]
[1766609103039,8.13286016,122.94,122.91,10.43767296]
[1766609103040,5.95894126,122.92,122.91,10.43767296]
[1766609103335,15.89194921,122.92,122.91,10.43767296]
[1766609105033,15.22194921,122.92,122.91,11.09767296]
[1766609105239,5.28894126,122.92,122.91,11.09767296]
[1766609106937,5.28894126,122.92,122.91,10.43767296]
[1766609107831,5.28894126,122.92,122.91,11.15767296]
[1766609108442,5.28894126,122.92,122.91,10.43767296]
[1766609109823,5.28894126,122.92,122.91,11.15767296]
[1766609110136,15.89194921,122.93,122.91,11.15767296]
[1766609110538,15.89194921,122.93,122.91,10.43767296]
[1766609111926,15.89194921,122.93,122.91,18.57330445]
[1766609112123,0.67,122.93,122.91,18.57330445]
[1766609112314,15.89194921,122.94,122.91,19.29330445]
[1766609112515,5.28253401,122.93,122.91,22.10593279]
[1766609112716,0.69,122.93,122.91,22.10593279]
[1766609114440,0.69,122.93,122.91,19.29330445]
[1766609118139,15.89194921,122.94,122.91,18.57330445]
[1766609118321,0.69,122.95,122.92,0.02]
[1766609118722,0.69,122.95,122.91,52.157882]
[1766609119345,0.69,122.95,122.91,72.49796824]
[1766609124950,0.69,122.95,122.92,10.9475805]
[1766609125248,0.69,122.95,122.92,8.13495216]
[1766609125918,16.58194921,122.95,122.92,8.13495216]
[1766609126120,0.69,122.94,122.92,8.13495216]
[1766609126320,0.69,122.94,122.91,18.59349917]
[1766609129840,0.69,122.94,122.91,18.57349917]
[1766609130336,5.87962773,122.93,122.91,18.57349917]
[1766609130533,0.69,122.93,122.91,10.43767296]
[1766609130737,5.88022662,122.92,122.91,10.43767296]
[1766609133139,0.69,122.93,122.91,10.43767296]
[1766609138953,0.69,122.93,122.89,42.11364669]
[1766609138954,0.69,122.93,122.89,24.42101835]
[1766609139254,0.66,122.91,122.89,0.67]
[1766609139951,25.08499491,122.91,122.89,0.67]
[1766609140162,25.08499491,122.91,122.88,8.13761994]
[1766609140359,0.66,122.91,122.88,0.67]
[1766609140660,30.13161648,122.9,122.87,8.80853397]
[1766609140852,25.08698367,122.9,122.87,8.80853397]
[1766609141236,25.08698367,122.9,122.88,0.67]
[1766609145465,24.42698367,122.9,122.88,0.67]
[1766609148668,25.08698367,122.9,122.87,8.13847957]
[1766609148853,25.08698367,122.9,122.87,8.80847957]
[1766609150966,0.66,122.89,122.87,0.67]
[1766609151655,8.7964115,122.89,122.87,0.67]
[1766609152645,8.1364115,122.89,122.87,0.67]
[1766609152852,8.7964115,122.89,122.87,0.67]
[1766609155471,8.1364115,122.89,122.87,0.67]
[1766609155770,8.7964115,122.89,122.87,0.67]
[1766609160586,8.1364115,122.89,122.87,0.67]
[1766609170188,8.7964115,122.89,122.87,0.67]
[1766609170694,8.1364115,122.89,122.87,8.80866421]
[1766609171189,8.7964115,122.89,122.87,8.80866421]
[1766609172697,0.66,122.89,122.87,8.80866421]
[1766609180514,0.66,122.89,122.87,0.67]
[1766609181204,0.66,122.89,122.86,18.77668555]
[1766609181411,0.66,122.89,122.86,19.46668555]
[1766609181903,0.66,122.89,122.86,11.32767296]
[1766609182110,21.95971906,122.89,122.86,11.32767296]
[1766609182311,5.02141404,122.88,122.86,11.32767296]
[1766609182610,21.95971906,122.89,122.86,11.32767296]
[1766609182779,5.02141638,122.88,122.86,11.32767296]
[1766609182984,21.95971906,122.89,122.86,11.32767296]
[1766609183193,5.02141638,122.88,122.86,11.32767296]
[1766609183398,21.95971906,122.89,122.86,11.32767296]
[1766609183602,5.02408839,122.88,122.86,11.32767296]
[1766609183793,21.95971906,122.89,122.86,11.32767296]
[1766609184002,5.02408839,122.88,122.86,11.32767296]
[1766609184205,21.95971906,122.89,122.86,11.32767296]
[1766609184413,5.02439295,122.88,122.86,11.32767296]
[1766609184592,21.95971906,122.89,122.86,11.32767296]
[1766609184907,5.02439529,122.88,122.86,11.32767296]
[1766609185114,21.95971906,122.89,122.86,11.32767296]
[1766609185406,5.02504079,122.88,122.86,11.32767296]
[1766609185610,21.95971906,122.89,122.86,11.32767296]
[1766609185914,5.02504313,122.88,122.86,11.32767296]
[1766609186215,0.66,122.88,122.86,10.63767296]
[1766609186582,0.66,122.88,122.86,11.32767296]
[1766609187198,0.66,122.88,122.86,10.63767296]
[1766609187599,0.52,122.86,122.84,0.2]
[1766609187790,5.02480214,122.85,122.84,0.2]
[1766609188099,0.52,122.86,122.82,2.00152564]
[1766609188300,0.52,122.86,122.82,12.4391986]
[1766609188705,0.52,122.86,122.82,10.63767296]
[1766609189611,0.66,122.85,122.83,10.43767296]
[1766609189806,2.46152564,122.84,122.82,0.2]
[1766609190009,0.66,122.82,122.8,0.2]
[1766609190423,0.66,122.82,122.8,10.63767296]
[1766609190589,0.66,122.82,122.8,0.2]
[1766609190786,5.72057969,122.82,122.8,0.2]
[1766609192419,0.66,122.82,122.8,0.89]
[1766609193830,8.14211714,122.82,122.79,0.2]
[1766609194038,0.61,122.8,122.79,0.2]
[1766609194736,0.61,122.79,122.78,0.2]
[1766609194917,2.41152564,122.79,122.78,0.2]
[1766609195117,0.61,122.79,122.78,0.2]
[1766609195329,5.67164218,122.79,122.78,0.2]
[1766609196251,0.61,122.78,122.77,0.2]
[1766609196546,0.61,122.77,122.76,0.2]
[1766609197114,2.41152564,122.77,122.76,0.2]
[1766609197745,0.61,122.77,122.76,0.2]
[1766609198720,10.75938211,122.77,122.76,0.2]
[1766609205338,18.90469448,122.77,122.76,0.2]
[1766609205933,1.80152564,122.92,122.78,0.69]
[1766609206238,16.68152564,122.86,122.81,0.69]
[1766609206818,14.88,122.86,122.81,2.49152564]
[1766609207020,14.88,122.86,122.77,10.43767296]
[1766609207021,1.80152564,122.84,122.79,11.12767296]
[1766609207219,14.88,122.83,122.79,11.12767296]
[1766609207425,16.68152564,122.83,122.79,11.12767296]
[1766609207619,14.88,122.83,122.79,10.43767296]
[1766609207813,24.17016446,122.85,122.82,0.69]
[1766609208019,14.88,122.84,122.82,2.49152564]
[1766609208239,14.88,122.84,122.82,0.69]
[1766609211749,14.86,122.83,122.82,0.69]
[1766609212319,15.54,122.83,122.8,0.69]
[1766609212772,17.34152564,122.83,122.8,0.69]
[1766609213533,25.48308403,122.83,122.8,0.69]
[1766609215044,24.80308403,122.83,122.78,80.36181985]
[1766609215244,24.80308403,122.83,122.79,0.69]
[1766609215245,0.68,122.82,122.79,0.69]
[1766609215445,14.86,122.81,122.79,0.69]
[1766609221942,14.86,122.81,122.79,8.14382682]
[1766609222142,0.68,122.83,122.8,0.5]
[1766609222351,14.86,122.82,122.8,0.5]
[1766609223354,15.54,122.83,122.8,8.64299487]
[1766609223654,15.54,122.84,122.8,9.94452051]
[1766609224032,0.68,122.83,122.8,8.14299487]
[1766609227450,14.86,122.84,122.8,8.14299487]
[1766609227650,15.52,122.84,122.8,8.14299487]
[1766609227844,0.66,122.83,122.8,8.14299487]
[1766609229936,0.66,122.82,122.78,61.78]
[1766609230143,0.66,122.82,122.78,69.92402478]
[1766609230657,0.66,122.82,122.78,71.72555042]
[1766609230956,0.66,122.82,122.78,69.92402478]
[1766609231451,0.66,122.82,122.78,61.78]
[1766609231754,0.66,122.81,122.78,61.78]
[1766609233942,0.66,122.81,122.77,10.96350098]
[1766609234545,0.66,122.81,122.78,2.81845699]
[1766609235365,0.66,122.81,122.77,10.96350098]
[1766609235843,0.66,122.81,122.77,8.14504399]
[1766609236669,0.66,122.8,122.76,80.56331058]
[1766609236961,0.66,122.8,122.76,21.60176757]
[1766609240367,0.66,122.8,122.77,2.81845699]
[1766609241070,0.66,122.8,122.76,21.60176757]
[1766609247248,0.66,122.8,122.76,18.78331058]
[1766609251974,0.66,122.8,122.76,21.60176757]
[1766609252985,0.66,122.8,122.76,41.96670728]
[1766609257587,0.69,122.79,122.76,10.63767296]
[1766609260986,0.69,122.79,122.76,18.78361838]
[1766609309906,0.66,122.78,122.76,10.63767296]
[1766609310101,0.66,122.78,122.76,0.2]
[1766609310408,0.66,122.78,122.76,10.63767296]
[1766609310611,0.66,122.77,122.76,9.19767296]
[1766609321019,15.6,122.78,122.76,9.19767296]
[1766609321828,0.72,122.77,122.76,9.19767296]
[1766609329552,0.72,122.78,122.76,9.19767296]
[1766609336540,0.72,122.77,122.76,9.19767296]
[1766609337834,16.68415971,122.79,122.76,9.19767296]
[1766609338035,0.72,122.78,122.76,9.19767296]
[1766609340149,0.72,122.78,122.76,17.34350843]
[1766609341249,0.72,122.8,122.77,0.7]
[1766609341835,1.80415971,122.83,122.77,1.80415971]
[1766609342035,0.72,122.81,122.78,0.7]
[1766609345860,0.72,122.81,122.78,8.84456709]
[1766609350061,0.72,122.81,122.78,8.14456709]
[1766609350238,0.72,122.81,122.78,8.80456709]
[1766609353543,0.72,122.81,122.78,8.14456709]
[1766609353761,0.72,122.81,122.79,0.66]
[1766609359369,26.52977189,122.83,122.79,0.66]
[1766609359673,0.69,122.82,122.79,0.66]
[1766609360171,11.64922305,122.84,122.8,0.66]
[1766609360355,23.71099063,122.84,122.8,0.66]
[1766609362454,23.02099063,122.84,122.8,0.66]
[1766609362655,23.71099063,122.84,122.8,0.66]
[1766609363157,0.69,122.83,122.8,0.66]
[1766609395697,8.83133878,122.83,122.8,0.66]
[1766609396813,0.69,122.83,122.8,0.66]
[1766609397392,8.8313637,122.83,122.8,0.66]
[1766609399015,0.69,122.83,122.8,0.66]
[1766609402392,0.69,122.83,122.79,8.86386046]
[1766609403110,0.71,122.82,122.79,8.86386046]
[1766609403515,0.71,122.82,122.78,11.15767296]
[1766609404092,11.67079879,122.82,122.78,11.15767296]
[1766609404298,0.71,122.81,122.8,9.71767296]
[1766609407819,3.52823242,122.81,122.8,9.71767296]
[1766609409422,0.71,122.81,122.8,9.71767296]
[1766609411320,0.71,122.81,122.78,0.72]
[1766609411321,3.52823242,122.81,122.78,0.72]
[1766609412019,2.81823242,122.8,122.78,0.72]
[1766609412939,3.52823242,122.81,122.78,8.86453518]
[1766609413419,3.52823242,122.81,122.78,19.30220814]
[1766609414123,2.51416717,122.81,122.78,19.30220814]
[1766609421015,1.80416717,122.8,122.78,19.30220814]
[1766609429140,2.51416717,122.81,122.78,19.30220814]
[1766609432113,0.71,122.81,122.78,19.30220814]
[1766609432314,2.51416717,122.81,122.78,19.30220814]
[1766609440438,1.80416717,122.79,122.76,20.36389757]
[1766609440621,1.80416717,122.79,122.74,20.36709404]
[1766609440622,2.49416717,122.77,122.74,0.67]
[1766609440936,1.80416717,122.75,122.74,0.67]
[1766609441529,1.80416717,122.75,122.73,9.01761028]
[1766609445025,22.86483846,122.76,122.73,9.01761028]
[1766609452757,22.86483846,122.76,122.74,0.67]
[1766609462459,21.06067129,122.76,122.74,0.67]
[1766609462643,22.86483846,122.76,122.74,0.67]
[1766609469961,22.86483846,122.76,122.73,0.2]
[1766609469962,1.80416717,122.75,122.73,0.2]
[1766609470168,1.80416717,122.74,122.73,0.2]
[1766609470468,2.48416717,122.75,122.73,0.2]
[1766609472652,26.9410212,122.75,122.73,0.2]
[1766609473371,2.48416717,122.75,122.73,0.2]
[1766609475977,3.50164032,122.75,122.73,0.2]
[1766609476473,2.82164032,122.75,122.73,0.2]
[1766609476654,2.82164032,122.75,122.73,0.89]
[1766609477166,3.50164032,122.75,122.73,0.89]
[1766609478473,2.82164032,122.75,122.73,0.89]
[1766609479173,3.50164032,122.75,122.73,0.89]
[1766609480070,24.45685403,122.77,122.73,9.0376434]
[1766609480276,2.82164032,122.77,122.74,0.69]
[1766609480969,3.50164032,122.77,122.74,0.69]
[1766609481572,2.82164032,122.76,122.74,0.69]
[1766609483650,11.64770727,122.76,122.73,0.89]
[1766609484052,2.82164032,122.75,122.73,0.89]
[1766609484463,11.64770727,122.76,122.73,0.89]
[1766609484664,11.64770727,122.76,122.74,0.69]
[1766609487756,11.64770727,122.76,122.73,0.2]
[1766609487956,11.64770727,122.76,122.73,0.89]
[1766609490190,10.96770727,122.76,122.73,0.89]
[1766609490390,3.50164032,122.75,122.73,0.2]
[1766609490776,3.50164032,122.75,122.73,0.89]
[1766609491267,2.82164032,122.75,122.73,0.89]
[1766609491464,3.50164032,122.74,122.71,0.69]
[1766609493482,2.82164032,122.73,122.71,0.69]
[1766609493689,3.50164032,122.73,122.71,0.69]
[1766609494181,2.82164032,122.73,122.71,0.69]
[1766609495985,3.50164032,122.74,122.71,0.69]
[1766609498193,18.58469006,122.75,122.72,0.72]
[1766609498194,3.54164032,122.75,122.72,0.72]
[1766609501097,2.82164032,122.75,122.72,0.72]
[1766609501400,36.14665972,122.76,122.73,0.72]
[1766609504493,2.82164032,122.75,122.72,0.72]
[1766609507604,3.54164032,122.75,122.72,0.72]
[1766609509200,3.54164032,122.74,122.71,8.86894384]
[1766609509390,3.54164032,122.74,122.71,0.72]
[1766609510300,2.82164032,122.73,122.71,0.72]
[1766609510817,3.54164032,122.74,122.71,0.72]
[1766609511182,11.68899428,122.74,122.71,0.72]
[1766609512907,3.54164032,122.74,122.71,0.72]
[1766609520201,0.72,122.74,122.71,0.72]
[1766609520540,3.54164032,122.74,122.71,0.72]
[1766609529436,2.82164032,122.73,122.71,0.72]
[1766609529618,3.54164032,122.74,122.71,0.72]
[1766609530210,0.72,122.74,122.71,0.72]
[1766609530427,2.82164032,122.73,122.71,0.72]
[1766609530610,2.82164032,122.73,122.7,11.15767296]
[1766609530611,2.82164032,122.72,122.7,11.15767296]
[1766609530813,3.53164032,122.72,122.7,11.15767296]
[1766609531023,0.71,122.72,122.7,11.15767296]
[1766609531629,0.71,122.7,122.68,0.72]
[1766609531853,4.92802152,122.69,122.67,0.92]
[1766609532057,3.53164032,122.7,122.67,0.92]
[1766609533138,13.96931328,122.7,122.67,0.92]
[1766609533526,10.43767296,122.7,122.68,0.72]
[1766609533734,15.59,122.71,122.68,0.72]
[1766609533933,4.92179513,122.7,122.68,0.72]
[1766609534146,23.94194096,122.71,122.68,0.72]
[1766609534147,15.59,122.71,122.68,0.72]
[1766609534345,4.92009678,122.7,122.68,0.72]
[1766609534553,13.25931328,122.7,122.68,0.72]
[1766609538954,15.77635749,122.7,122.67,0.92]
[1766609539136,23.2163737,122.7,122.67,0.92]
[1766609539332,2.51704421,122.69,122.67,0.2]
[1766609539536,12.95471717,122.69,122.67,0.2]
[1766609539748,12.95471717,122.69,122.67,0.92]
[1766609543060,12.24471717,122.69,122.67,0.2]
[1766609543264,12.24471717,122.69,122.68,0.72]
[1766609543979,12.24471717,122.69,122.67,0.92]
[1766609544378,12.24471717,122.69,122.68,0.72]
[1766609545277,1.80704421,122.69,122.68,0.72]
[1766609545661,12.24471717,122.69,122.68,0.72]
[1766609545957,12.95471717,122.69,122.67,0.2]
[1766609546153,12.95471717,122.69,122.67,0.92]
[1766609548684,2.51704421,122.69,122.67,0.92]
[1766609549188,8.1496623,122.71,122.68,0.72]
[1766609549387,1.80704421,122.71,122.68,0.72]
[1766609549593,2.51704421,122.71,122.68,0.72]
[1766609553063,0.71,122.71,122.68,0.72]
[1766609565012,2.51704421,122.71,122.68,0.72]
[1766609573193,4.92181373,122.7,122.68,0.72]
[1766609573505,2.51704421,122.71,122.68,0.72]
[1766609573708,4.92181608,122.7,122.68,0.72]
[1766609573895,2.51704421,122.71,122.68,0.72]
[1766609574206,4.92181608,122.7,122.68,0.72]
[1766609574409,2.51704421,122.71,122.68,0.72]
[1766609574608,4.92405765,122.7,122.68,0.72]
[1766609574787,2.51704421,122.71,122.68,0.72]
[1766609574988,4.92405765,122.7,122.68,0.72]
[1766609575304,2.51704421,122.71,122.68,0.72]
[1766609575517,4.92711261,122.7,122.68,0.72]
[1766609575702,2.51704421,122.71,122.68,0.72]
[1766609576005,4.92710534,122.7,122.68,0.72]
[1766609576191,2.51704421,122.71,122.68,0.72]
[1766609576392,4.92862345,122.7,122.68,0.72]
[1766609576593,2.51704421,122.71,122.68,0.72]
[1766609576821,4.9286258,122.7,122.68,0.72]
[1766609576994,2.51704421,122.71,122.68,0.72]
[1766609577203,4.9286258,122.7,122.68,0.72]
[1766609577379,2.51704421,122.71,122.68,0.72]
[1766609577583,4.92868364,122.7,122.68,0.72]
[1766609577781,2.51704421,122.71,122.68,0.72]
[1766609577992,4.92868117,122.7,122.68,0.72]
[1766609578193,2.51704421,122.71,122.68,0.72]
[1766609578392,4.9287487,122.7,122.68,0.72]
[1766609578606,2.51704421,122.71,122.68,0.72]
[1766609578793,4.92875105,122.7,122.68,0.72]
[1766609578994,2.51704421,122.71,122.68,0.72]
[1766609579187,4.92875105,122.7,122.68,0.72]
[1766609579486,2.51704421,122.71,122.68,0.72]
[1766609579686,4.92872909,122.7,122.68,0.72]
[1766609579886,2.51704421,122.71,122.68,0.72]
[1766609580087,4.92872909,122.7,122.68,0.72]
[1766609580312,2.51704421,122.71,122.68,0.72]
[1766609580510,4.92867458,122.7,122.68,0.72]
[1766609580715,2.51704421,122.71,122.68,0.72]
[1766609580917,4.92867458,122.7,122.68,0.72]
[1766609581095,2.51704421,122.71,122.68,0.72]
[1766609581394,4.92868103,122.7,122.68,0.72]
[1766609581692,2.51704421,122.71,122.68,0.72]
[1766609581894,4.92868338,122.7,122.68,0.72]
[1766609582089,2.51704421,122.71,122.68,0.72]
[1766609582306,4.92868103,122.7,122.68,0.72]
[1766609582517,2.51704421,122.71,122.68,0.72]
[1766609582714,4.92868437,122.7,122.68,0.72]
[1766609582918,2.51704421,122.71,122.68,0.72]
[1766609583137,4.92868672,122.7,122.68,0.72]
[1766609583293,2.51704421,122.71,122.68,0.72]
[1766609583493,4.92749981,122.7,122.68,0.72]
[1766609583694,2.51704421,122.71,122.68,0.72]
[1766609583895,4.92749981,122.7,122.68,0.72]
[1766609584192,2.51704421,122.71,122.68,0.72]
[1766609584389,4.92752944,122.7,122.68,0.72]
[1766609584688,10.66634814,122.71,122.68,0.72]
[1766609584892,4.92752944,122.7,122.68,0.72]
[1766609585090,10.66634814,122.71,122.68,0.72]
[1766609585394,4.92801462,122.7,122.68,0.72]
[1766609585698,10.66634814,122.71,122.68,0.72]
[1766609585899,4.92825509,122.7,122.68,0.72]
[1766609586126,35.1331752,122.71,122.68,0.72]
[1766609586304,4.92852138,122.7,122.68,0.72]
[1766609586512,35.1331752,122.71,122.68,0.72]
[1766609586804,4.92852138,122.7,122.68,0.72]
[1766609587104,35.1331752,122.71,122.68,0.72]
[1766609587306,4.92882494,122.7,122.68,0.72]
[1766609587499,35.1331752,122.71,122.68,0.72]
[1766609587798,4.92882728,122.7,122.68,0.72]
[1766609587998,35.1331752,122.71,122.68,0.72]
[1766609588202,4.92882728,122.7,122.68,0.72]
[1766609588423,35.1331752,122.71,122.68,0.72]
[1766609588622,4.92917161,122.7,122.68,0.72]
[1766609588922,35.1331752,122.71,122.68,0.72]
[1766609589109,4.92917161,122.7,122.68,0.72]
[1766609589308,35.1331752,122.71,122.68,0.72]
[1766609589511,4.92957578,122.7,122.68,0.72]
[1766609589710,35.1331752,122.71,122.68,0.72]
[1766609590018,4.92957578,122.7,122.68,0.72]
[1766609590220,35.1331752,122.71,122.68,0.72]
[1766609590420,4.93004443,122.7,122.68,0.72]
[1766609590603,35.1331752,122.71,122.68,0.72]
[1766609590899,4.93004443,122.7,122.68,0.72]
[1766609591096,35.1331752,122.71,122.68,0.72]
[1766609591396,4.93004678,122.7,122.68,0.72]
[1766609591601,4.93004678,122.69,122.68,0.72]
[1766609592225,4.93004678,122.7,122.68,0.72]
[1766609592523,4.93004678,122.69,122.68,0.72]
[1766609592716,35.1331752,122.71,122.68,0.72]
[1766609592717,4.93004678,122.7,122.68,0.72]
[1766609592910,4.93142179,122.69,122.68,0.72]
[1766609596843,10.66634814,122.71,122.68,0.72]
[1766609597011,4.93333653,122.7,122.68,0.72]
[1766609597210,4.93333653,122.69,122.68,0.72]
[1766609602133,4.93330828,122.69,122.68,0.72]
[1766609602427,3.49330828,122.69,122.68,0.66]
[1766609602634,8.83930393,122.71,122.68,0.66]
[1766609606436,0.69,122.7,122.68,0.66]
[1766609609960,0.69,122.7,122.67,0.89]
[1766609610238,103.9,122.74,122.65,0.2]
[1766609610417,2.82355927,122.72,122.67,0.69]
[1766609610613,24.46682706,122.72,122.68,0.69]
[1766609610818,2.82355927,122.73,122.68,0.69]
[1766609612241,0.67,122.72,122.68,8.84105808]
[1766609612447,0.67,122.72,122.69,0.69]
[1766609618253,0.7,122.71,122.68,8.83105808]
[1766609618750,0.7,122.71,122.69,0.68]
[1766609618950,8.84867615,122.72,122.69,0.68]
[1766609619851,0.7,122.7,122.67,11.11767296]
[1766609621333,0.7,122.7,122.67,19.26955199]
[1766609622349,0.7,122.7,122.68,0.68]
[1766609625761,33.32579082,122.72,122.68,0.68]
[1766609626545,25.17682706,122.72,122.69,0.67]
[1766609627155,0.71,122.72,122.69,0.67]
[1766609627357,13.26123223,122.74,122.7,0.67]
[1766609627664,0.71,122.74,122.7,0.67]
[1766609627839,0.71,122.74,122.7,8.81968997]
[1766609629248,0.71,122.73,122.7,8.81968997]
[1766609629861,2.82355927,122.74,122.69,0.67]
[1766609629862,2.82355927,122.72,122.69,0.67]
[1766609630048,2.82355927,122.72,122.7,0.67]
[1766609630049,0.71,122.72,122.7,0.67]
[1766609630449,0.71,122.73,122.7,0.67]
[1766609632464,0.71,122.73,122.7,8.81995655]
[1766609633055,0.71,122.73,122.71,0.67]
[1766609634646,0.71,122.74,122.71,0.67]
[1766609639768,0.71,122.73,122.71,0.67]
[1766609643771,0.71,122.73,122.7,0.67]
[1766609646272,8.85804443,122.73,122.7,0.67]
[1766609651485,10.97351582,122.74,122.7,8.1499154]
[1766609651687,10.97351582,122.74,122.71,0.66]
[1766609651688,0.72,122.74,122.71,0.66]
[1766609651986,0.72,122.73,122.71,0.66]
[1766609653884,3.54355927,122.74,122.71,0.66]
[1766609654057,0.72,122.73,122.71,0.66]
[1766609655780,0.72,122.73,122.7,8.1499154]
[1766609655781,0.72,122.73,122.68,45.20940285]
[1766609655958,0.72,122.73,122.7,0.66]
[1766609658562,10.67435601,122.73,122.7,0.66]
[1766609664790,31.05214901,122.73,122.7,0.66]
[1766609664991,29.24578202,122.73,122.7,0.66]
[1766609665591,8.86798902,122.73,122.7,0.66]
[1766609671196,10.67435601,122.73,122.7,0.66]
[1766609671701,35.13719288,122.73,122.7,0.66]
[1766609674997,35.13719288,122.73,122.67,134.4663314]
[1766609674998,0.72,122.71,122.68,8.81099497]
[1766609675300,2.52636699,122.72,122.69,0.66]
[1766609676284,0.72,122.72,122.69,0.66]
[1766609677500,0.72,122.72,122.69,8.81051383]
[1766609677702,0.72,122.72,122.69,8.86051383]
[1766609684010,0.72,122.72,122.69,0.71]
[1766609685109,0.72,122.72,122.69,8.86048446]
[1766609686318,0.72,122.72,122.68,8.8412879]
[1766609687100,0.72,122.72,122.69,0.69]
[1766609689323,0.72,122.72,122.69,8.84031545]
[1766609701822,24.83465898,122.73,122.69,0.69]
[1766609702027,0.69,122.72,122.69,0.69]
[1766609713934,25.1548318,122.72,122.69,0.69]
[1766609716836,25.1548318,122.72,122.69,8.84061965]
[1766609719736,25.1548318,122.72,122.69,0.69]
[1766609719737,26.27119879,122.72,122.69,0.69]
[1766609719937,0.69,122.7,122.69,10.43767296]
[1766609720139,2.82389968,122.71,122.69,10.43767296]
[1766609720140,0.69,122.71,122.69,10.43767296]
[1766609720336,25.1548318,122.71,122.69,10.43767296]
[1766609721443,0.69,122.71,122.69,10.43767296]
[1766609721819,0.69,122.71,122.69,11.11767296]
[1766609722718,2.82389968,122.73,122.7,0.68]
[1766609722921,0.69,122.73,122.7,0.68]
[1766609723120,3.51389968,122.73,122.7,0.68]
[1766609723839,2.82389968,122.73,122.7,0.68]
[1766609724046,3.51389968,122.73,122.7,0.68]
[1766609725144,2.82389968,122.73,122.7,0.68]
[1766609725349,0.69,122.72,122.7,0.68]
[1766609734467,3.51389968,122.73,122.7,0.68]
[1766609736233,2.82389968,122.73,122.7,0.68]
[1766609736554,3.51389968,122.73,122.7,0.68]
[1766609742155,24.46283687,122.74,122.71,0.72]
[1766609742866,18.42389968,122.75,122.71,0.72]
[1766609743156,42.88474194,122.75,122.71,0.72]
[1766609743664,40.06084226,122.75,122.71,0.72]
[1766609744363,51.03146599,122.75,122.72,0.72]
[1766609744542,24.46084226,122.75,122.72,0.72]
[1766609744738,0.72,122.76,122.72,0.72]
[1766609744940,3.54389968,122.76,122.72,0.72]
[1766609745536,3.54389968,122.76,122.72,8.86835045]
[1766609745732,3.54389968,122.76,122.73,0.72]
[1766609747758,0.72,122.76,122.73,0.72]
[1766609753852,3.54389968,122.76,122.73,0.72]
[1766609754074,0.72,122.76,122.73,0.72]
[1766609754273,3.54389968,122.76,122.73,0.72]
[1766609754972,0.72,122.76,122.73,8.86784049]
[1766609755151,15.6,122.77,122.74,0.72]
[1766609756773,18.42389968,122.77,122.74,0.72]
[1766609761078,2.82389968,122.76,122.74,0.72]
[1766609761470,3.54389968,122.76,122.74,0.72]
[1766609762975,2.82389968,122.75,122.71,95.10391279]
[1766609763158,3.54389968,122.74,122.71,62.5]
[1766609763365,3.54389968,122.74,122.72,0.72]
[1766609764179,3.54389968,122.74,122.71,63.22]
[1766609764351,2.82389968,122.74,122.71,63.22]
[1766609764558,2.82389968,122.74,122.71,0.72]
[1766609764864,0.72,122.73,122.72,10.43767296]
[1766609766491,0.72,122.73,122.71,0.72]
[1766609766861,0.72,122.73,122.72,10.43767296]
[1766609767661,0.72,122.73,122.71,0.72]
[1766609767867,0.72,122.73,122.72,10.43767296]
[1766609769579,0.72,122.73,122.71,0.72]
[1766609771778,0.72,122.73,122.69,23.73692994]
[1766609771779,0.71,122.72,122.69,23.73692994]
[1766609771971,0.71,122.71,122.69,0.71]
[1766609772366,0.71,122.71,122.69,8.86060905]